[Event "46th OKU-B 2019"]
[Site "Utrecht"]
[Date "2019.05.31"]
[Round "1.8"]
[White "Van Aken, Jelmer"]
[Black "Mensing, Adrian"]
[Result "1-0"]
[ECO "B06"]
[WhiteElo "1698"]
[BlackElo "1938"]
[Annotator "NA RC"]
[PlyCount "59"]
[EventDate "2019.05.31"]
[EventType "swiss"]
[EventCountry "NED"]
[SourceTitle "playchess.com"]
[Source "ChessBase"]
[SourceQuality "1"]
[TimeControl "6600+10"]

{[%evp 28,59,167,152,32767,178,239,186,197,189,183,176,187,197,217,232,415,401,449,475,493,508,513,499,32767,705,1447,1607,2443,29976,29997,29998,29998,29999]} 1. e4 {[%emt 0:00:00]} g6 {[%emt 0:00:00]} 2. d4 {[%emt 0:00:00]} Bg7 {[%emt 0:00:03]} 3. Nf3 {[%emt 0:00:19]} d6 {[%emt 0:00:06]} 4. Be3 {[%emt 0:00:54]} a6 {[%emt 0:00:11]} (4... Nf6 5. Nc3 O-O 6. Qd2 Nc6 7. d5 Nb4 8. a3 Na6 9. Bxa6 bxa6 10. Bh6 c6 11. Bxg7 Kxg7 12. O-O Qb6 13. Rab1 cxd5 14. exd5 {0-1 (31) Giri,A (2782)-Aronian,L (2767) chess.com INT 2018}) 5. h3 {[%emt 0:00:54]} b5 {[%emt 0:00:10]} 6. c4 {[%emt 0:01:41] B06: Modern Defence} c6 {[%emt 0:04:25]} 7. Be2 $146 {[%emt 0:04:17]} ({Predecessor:} 7. a4 bxc4 8. Bxc4 d5 9. Bd3 dxe4 10. Bxe4 Nf6 11. Bd3 Nd5 12. O-O {0-1 (48) Grekhov,L (1899)-Vazhenin,A (2138) Ekaterinburg 2018}) 7... Nd7 {[%emt 0:04:10]} 8. O-O {[%emt 0:04:30]} Bb7 {[%emt 0:07:07]} 9. Nbd2 {[%emt 0:01:31]} Qc7 {[%emt 0:13:48]} 10. Qc2 {[%emt 0:06:59]} Rc8 {[%emt 0:10:13]} 11. Rac1 {[%emt 0:03:45]} b4 {[%emt 0:01:29]} 12. a3 {[%emt 0:13:46]} a5 {[%emt 0:02:23]} 13. axb4 {[%emt 0:01:19]} axb4 {[%emt 0:00:14]} 14. c5 {[%emt 0:00:08]} Ngf6 {[%emt 0:22:48]} 15. Qb3 {[%emt 0:15:44]} Rb8 {[%emt 0:12:07]} 16. Ra1 {[%emt 0:12:41]} ({Not} 16. Qxb4 Ba6 $15 {[%mdl 64] Discovered Attack}) (16. cxd6 $142 exd6 17. Bf4) 16... Bc8 {[%emt 0:09:10]} (16... O-O $142 17. Ra4 dxc5) 17. Ra4 {[%emt 0:01:52]} dxc5 {[%emt 0:06:45]} 18. dxc5 {[%emt 0:00:22]} O-O {[%emt 0:00:09]} 19. Rxb4 {[%emt 0:01:32]} Rxb4 {[%emt 0:00:06]} 20. Qxb4 {[%emt 0:00:06]} Ne5 {[%emt 0:03:53]} 21. Nd4 {[%emt 0:01:26]} Bd7 $2 {[%emt 0:01:29]} (21... Bb7 {might work better.} 22. Ra1 Ra8 23. Rxa8+ Bxa8) 22. f4 {[%emt 0:02:33]} Nh5 {[%emt 0:05:31]} 23. Bxh5 {[%emt 0:01:56]} ({But not} 23. fxe5 Ng3 $18) 23... gxh5 {[%emt 0:00:01]} 24. fxe5 {[%emt 0:00:34]} Qxe5 {[%emt 0:00:33]} 25. Rf3 {[%emt 0:07:50]} Ra8 {[%emt 0:03:18]} 26. Qb7 {[%emt 0:03:15] Double Attack} Ra1+ {[%emt 0:00:10]} 27. Kf2 {[%emt 0:00:06]} Be8 {[%emt 0:03:06] [#]} 28. Qc8 $1 {[%emt 0:01:06]} Qh2 {[%emt 0:00:51]} 29. Qxe8+ {[%emt 0:00:13] Double Attack} Bf8 {[%emt 0:00:01]} 30. Qxf7+ {[%emt 0:00:11] Double Attack} 1-0

[Event "46th OKU-B 2019"]
[Site "Utrecht"]
[Date "2019.06.01"]
[Round "2.1"]
[White "Aguado Garcia, Pablo"]
[Black "Heinen, Frank"]
[Result "1-0"]
[ECO "C44"]
[WhiteElo "1890"]
[BlackElo "1768"]
[Annotator "NA"]
[PlyCount "106"]
[EventDate "2019.05.31"]
[EventType "swiss"]
[EventCountry "NED"]
[SourceTitle "playchess.com"]
[Source "ChessBase"]
[SourceQuality "1"]
[TimeControl "6600+10"]

1. e4 {[%emt 0:00:00]} e5 {[%emt 0:02:34]} 2. Nf3 {[%emt 0:09:26]} Nc6 {[%emt 0:03:33]} 3. c3 {[%emt 0:00:12]} Nf6 {[%emt 0:04:08]} 4. d4 {[%emt 0:00:08]} d5 {[%emt 0:03:49]} 5. Bb5 {[%emt 0:02:11]} Nxe4 {[%emt 0:09:26]} 6. Nxe5 {[%emt 0:01:19]} Bd7 {[%emt 0:01:13]} 7. Nxd7 {[%emt 0:03:49]} Qxd7 {[%emt 0:00:30]} 8. Qe2 {[%emt 0:00:23]} O-O-O {[%emt 0:02:53]} 9. Be3 {[%emt 0:11:30]} f5 {[%emt 0:04:16]} 10. Nd2 {[%emt 0:02:46]} Qd6 {[%emt 0:05:26]} 11. O-O-O {[%emt 0:08:45]} Kb8 {[%emt 0:04:15]} 12. Qf3 $11 {[%emt 0:02:30]} (12. f3 $14 Nf6 13. g3) 12... Qg6 {[%emt 0:07:06]} 13. Bxc6 {[%emt 0:05:11]} Qxc6 {[%emt 0:03:21]} 14. Kb1 {[%emt 0:14:14]} g6 {[%emt 0:06:19]} 15. Bf4 {[%emt 0:01:30]} Bd6 {[%emt 0:02:13]} 16. Rhe1 {[%emt 0:04:46]} Bxf4 {[%emt 0:07:36]} 17. Qxf4 {[%emt 0:00:08]} Rhf8 {[%emt 0:04:41]} 18. Nf3 {[%emt 0:02:01]} Qf6 {[%emt 0:02:05]} 19. Ne5 {[%emt 0:04:37]} g5 {[%emt 0:01:27]} 20. Qf3 {[%emt 0:01:46]} Qh6 {[%emt 0:01:31]} 21. Qe3 {[%emt 0:18:06]} f4 {[%emt 0:05:01]} 22. Qe2 {[%emt 0:01:16]} Qf6 {[%emt 0:04:32]} 23. f3 {[%emt 0:00:22]} Nd6 {[%emt 0:00:50]} 24. Ng4 {[%emt 0:01:59]} Qf5+ {[%emt 0:02:43]} 25. Qc2 {[%emt 0:00:14]} Qxc2+ {[%emt 0:04:52]} 26. Kxc2 {[%emt 0:00:04]} Nf5 {[%emt 0:01:03]} 27. Rd2 {[%emt 0:01:23]} h5 {[%emt 0:00:39]} 28. Ne5 {[%emt 0:00:46]} Ne3+ {[%emt 0:01:46]} 29. Kc1 {[%emt 0:00:51]} h4 {[%emt 0:00:51]} 30. h3 {[%emt 0:02:08]} Kc8 {[%emt 0:03:26]} 31. Ng4 {[%emt 0:00:13]} Nxg4 {[%emt 0:00:32]} 32. hxg4 {[%emt 0:00:17]} Rde8 {[%emt 0:02:08]} 33. Rde2 {[%emt 0:00:08]} Kd7 {[%emt 0:00:16]} 34. Re5 {[%emt 0:01:20]} c6 {[%emt 0:00:39]} 35. Kc2 {[%emt 0:00:24]} Rxe5 {[%emt 0:01:15]} 36. Rxe5 {[%emt 0:00:03]} h3 {[%emt 0:00:22]} 37. gxh3 {[%emt 0:00:11]} Rh8 {[%emt 0:00:07]} 38. Rxg5 {[%emt 0:00:11]} Rxh3 {[%emt 0:00:07]} 39. Rg7+ {[%emt 0:00:17]} Kc8 {[%emt 0:00:06]} 40. Kd2 {[%emt 0:02:58]} Rxf3 {[%emt 0:00:06]} 41. Ke2 {[%emt 0:00:03]} Rh3 {[%emt 0:01:25]} 42. Rf7 {[%emt 0:00:31]} Rh2+ {[%emt 0:00:24]} 43. Kf3 {[%emt 0:00:04]} Rxb2 {[%emt 0:00:09]} 44. g5 {[%emt 0:00:05]} Rxa2 {[%emt 0:01:31]} 45. g6 {[%emt 0:00:06]} Ra1 {[%emt 0:00:24]} 46. Kxf4 {[%emt 0:00:57]} Rf1+ {[%emt 0:00:51]} 47. Ke5 {[%emt 0:00:11]} Re1+ {[%emt 0:00:21]} 48. Kf6 {[%emt 0:00:44]} Rf1+ {[%emt 0:00:18]} 49. Ke6 {[%emt 0:00:21]} Re1+ {[%emt 0:00:06]} 50. Kd6 {[%emt 0:00:13]} Re8 {[%emt 0:00:06]} 51. g7 {[%emt 0:00:31]} Rd8+ {[%emt 0:00:16]} 52. Ke6 {[%emt 0:00:08]} Re8+ {[%emt 0:00:26]} 53. Kf6 {[%emt 0:00:17]} Rg8 {[%emt 0:01:34]} 1-0

[Event "46th OKU-B 2019"]
[Site "Utrecht"]
[Date "2019.06.01"]
[Round "2.2"]
[White "Flohr, Ron"]
[Black "Waardenburg, Feline"]
[Result "1-0"]
[ECO "A45"]
[WhiteElo "1883"]
[BlackElo "1761"]
[Annotator "NA"]
[PlyCount "47"]
[EventDate "2019.05.31"]
[EventType "swiss"]
[EventCountry "NED"]
[SourceTitle "playchess.com"]
[Source "ChessBase"]
[SourceQuality "1"]
[TimeControl "6600+10"]

1. d4 {[%emt 0:00:00]} Nf6 {[%emt 0:00:04]} 2. Bg5 {[%emt 0:00:01]} e6 {[%emt 0:01:07]} 3. Nd2 {[%emt 0:00:06]} d5 {[%emt 0:00:34]} 4. f3 {[%emt 0:02:56]} Be7 {[%emt 0:01:48]} 5. c3 {[%emt 0:00:38]} Nbd7 {[%emt 0:03:16]} 6. e4 {[%emt 0:03:08]} dxe4 {[%emt 0:01:55]} 7. fxe4 {[%emt 0:00:56]} c5 {[%emt 0:01:25]} 8. Be3 {[%emt 0:00:23]} Qb6 {[%emt 0:03:15]} 9. Rb1 {[%emt 0:07:33]} Qc6 {[%emt 0:04:40]} 10. Bd3 {[%emt 0:02:50]} b6 {[%emt 0:03:40]} 11. Qf3 {[%emt 0:04:08]} Bb7 {[%emt 0:01:36]} 12. Ne2 {[%emt 0:00:28]} Qa4 {[%emt 0:08:02]} 13. O-O {[%emt 0:02:21]} Rf8 {[%emt 0:03:29]} 14. b3 {[%emt 0:03:00]} Qc6 {[%emt 0:02:51]} 15. c4 {[%emt 0:01:08]} cxd4 {[%emt 0:04:09]} 16. Nxd4 {[%emt 0:00:14]} Qd6 {[%emt 0:02:33]} 17. Qe2 {[%emt 0:07:58]} Nc5 {[%emt 0:02:48]} 18. Bc2 {[%emt 0:01:13]} Ncxe4 {[%emt 0:07:43]} 19. Nb5 {[%emt 0:01:33]} Qb8 $2 {[%emt 0:07:53]} (19... Qe5 $16) 20. Nxe4 {[%emt 0:01:09]} Nxe4 {[%emt 0:00:40]} 21. Bf4 $18 {[%emt 0:00:26]} Bc5+ {[%emt 0:15:54]} 22. Kh1 {[%emt 0:00:42]} Nf2+ {[%emt 0:03:03]} 23. Rxf2 {[%emt 0:00:14]} Bxg2+ {[%emt 0:00:13]} 24. Kxg2 {[%emt 0:00:20]} 1-0

[Event "46th OKU-B 2019"]
[Site "Utrecht"]
[Date "2019.06.01"]
[Round "2.3"]
[White "De Dreu, Dies"]
[Black "Van de Lagemaat, Arend"]
[Result "0-1"]
[ECO "B38"]
[WhiteElo "1761"]
[BlackElo "1855"]
[Annotator "NA"]
[PlyCount "76"]
[EventDate "2019.05.31"]
[EventType "swiss"]
[EventCountry "NED"]
[SourceTitle "playchess.com"]
[Source "ChessBase"]
[SourceQuality "1"]
[TimeControl "6600+10"]

1. d4 {[%emt 0:04:42]} Nf6 {[%emt 0:00:00]} 2. Nf3 {[%emt 0:00:12]} g6 {[%emt 0:00:53]} 3. c4 {[%emt 0:00:57]} Bg7 {[%emt 0:03:12]} 4. Nc3 {[%emt 0:00:34]} d6 {[%emt 0:01:28]} 5. e4 {[%emt 0:00:33]} O-O {[%emt 0:00:44]} 6. Be2 {[%emt 0:00:32]} c5 {[%emt 0:00:37]} 7. O-O {[%emt 0:02:52]} cxd4 {[%emt 0:01:27]} 8. Nxd4 {[%emt 0:02:06]} Nc6 {[%emt 0:00:08]} 9. Be3 {[%emt 0:02:05]} Nxd4 {[%emt 0:01:10]} 10. Bxd4 $14 {[%emt 0:00:26]} a5 {[%emt 0:02:23]} 11. f3 {[%emt 0:03:36]} Nd7 {[%emt 0:05:29]} 12. Bxg7 {[%emt 0:04:26]} Kxg7 {[%emt 0:00:02]} 13. Qd4+ {[%emt 0:02:43]} Kg8 {[%emt 0:00:22]} 14. Nd5 {[%emt 0:05:39]} Nc5 {[%emt 0:07:56]} 15. Rfd1 {[%emt 0:08:42]} Bd7 {[%emt 0:05:53]} 16. e5 {[%emt 0:20:12]} Ne6 {[%emt 0:21:52]} 17. Qe3 {[%emt 0:03:00]} Bc6 {[%emt 0:03:07]} 18. Nb6 {[%emt 0:05:57]} Rb8 {[%emt 0:02:32]} 19. Rd2 {[%emt 0:06:16]} Nc5 {[%emt 0:06:28]} 20. Nd5 {[%emt 0:01:06]} Bxd5 {[%emt 0:00:12]} 21. Rxd5 {[%emt 0:00:29]} Qb6 {[%emt 0:00:34]} 22. Qd4 {[%emt 0:17:23]} Rbd8 {[%emt 0:03:15]} 23. Rd1 {[%emt 0:00:39]} Rfe8 {[%emt 0:01:23]} 24. h4 {[%emt 0:04:15]} Qc7 {[%emt 0:05:52]} 25. exd6 {[%emt 0:02:56]} exd6 {[%emt 0:00:26]} 26. Bf1 {[%emt 0:02:40]} Ne6 {[%emt 0:00:52]} 27. Qd2 {[%emt 0:00:44]} Qe7 {[%emt 0:02:04]} 28. g3 {[%emt 0:01:20]} Qf6 {[%emt 0:02:13]} 29. Bg2 {[%emt 0:01:02]} Ng7 {[%emt 0:02:08]} 30. b3 {[%emt 0:03:34]} Nf5 {[%emt 0:00:04]} 31. Rd3 {[%emt 0:01:16]} Nxg3 {[%emt 0:01:12]} 32. Rxd6 {[%emt 0:01:44]} Rxd6 {[%emt 0:00:27]} 33. Qxd6 {[%emt 0:00:02]} Ne2+ {[%emt 0:02:35]} 34. Kf1 {[%emt 0:00:13]} Qxh4 {[%emt 0:00:09]} 35. Qd7 {[%emt 0:00:20]} Re7 {[%emt 0:03:48]} 36. Qg4 {[%emt 0:00:20]} Qf6 {[%emt 0:01:12]} 37. Rd2 {[%emt 0:00:22]} Qa1+ {[%emt 0:00:42]} 38. Kf2 {[%emt 0:00:06]} Qg1# {[%emt 0:00:14]} 0-1

[Event "46th OKU-B 2019"]
[Site "Utrecht"]
[Date "2019.06.01"]
[Round "2.4"]
[White "Scholten, Marcel"]
[Black "Weise, Daniel"]
[Result "1-0"]
[ECO "D32"]
[WhiteElo "1747"]
[BlackElo "1844"]
[Annotator "NA"]
[PlyCount "139"]
[EventDate "2019.05.31"]
[EventType "swiss"]
[EventCountry "NED"]
[SourceTitle "playchess.com"]
[Source "ChessBase"]
[SourceQuality "1"]
[TimeControl "6600+10"]

1. d4 {[%emt 0:00:00]} d5 {[%emt 0:00:40]} 2. Nf3 {[%emt 0:00:00]} Nf6 {[%emt 0:00:14]} 3. Bg5 {[%emt 0:00:03]} e6 {[%emt 0:00:57]} 4. e3 {[%emt 0:00:06]} c5 {[%emt 0:00:07]} 5. c4 {[%emt 0:00:16]} Nc6 {[%emt 0:02:02]} 6. cxd5 {[%emt 0:01:35]} exd5 {[%emt 0:00:37]} 7. Nc3 {[%emt 0:00:53]} Be6 {[%emt 0:02:28]} 8. Rc1 {[%emt 0:01:49]} cxd4 {[%emt 0:02:02]} 9. Nxd4 {[%emt 0:00:20]} a6 {[%emt 0:03:19]} 10. Nxe6 {[%emt 0:02:21]} fxe6 {[%emt 0:00:06]} 11. Be2 {[%emt 0:04:09]} Be7 $11 {[%emt 0:00:17]} 12. O-O {[%emt 0:01:16]} O-O {[%emt 0:00:08]} 13. Qb3 {[%emt 0:01:13]} Na5 {[%emt 0:05:08]} 14. Qa4 {[%emt 0:03:14]} b5 {[%emt 0:01:14]} 15. Qd4 {[%emt 0:01:56]} Nc6 {[%emt 0:02:43]} 16. Qd2 {[%emt 0:08:33]} Rc8 {[%emt 0:15:05]} 17. Bd3 {[%emt 0:03:09]} Ne5 {[%emt 0:07:53]} 18. Bb1 {[%emt 0:02:06]} Ne4 {[%emt 0:02:06]} 19. Nxe4 {[%emt 0:02:34]} Rxc1 {[%emt 0:00:56]} 20. Rxc1 {[%emt 0:01:30]} Bxg5 {[%emt 0:00:10]} 21. Nc5 {[%emt 0:02:28]} Qd6 {[%emt 0:25:47]} 22. f4 {[%emt 0:09:25]} Bxf4 {[%emt 0:06:49]} 23. exf4 {[%emt 0:00:48]} Nc4 {[%emt 0:00:18]} 24. Qf2 {[%emt 0:08:39]} Rxf4 {[%emt 0:00:58]} 25. Nb7 {[%emt 0:05:40]} Rxf2 {[%emt 0:05:58]} 26. Nxd6 {[%emt 0:00:05]} Rxb2 {[%emt 0:00:07]} 27. Nb7 {[%emt 0:03:50]} e5 {[%emt 0:04:04]} 28. Nc5 {[%emt 0:05:54]} Nd2 {[%emt 0:02:27]} 29. Bf5 {[%emt 0:00:09]} Nc4 {[%emt 0:00:59]} 30. Nxa6 {[%emt 0:01:27]} Rxa2 {[%emt 0:00:56]} 31. Nb4 {[%emt 0:00:07]} Rd2 {[%emt 0:03:01]} 32. Be6+ {[%emt 0:00:27]} Kf8 {[%emt 0:00:04]} 33. Nxd5 {[%emt 0:00:24]} g6 {[%emt 0:00:57]} 34. Rb1 {[%emt 0:03:18]} Rb2 {[%emt 0:03:43]} 35. Rxb2 {[%emt 0:01:58]} Nxb2 {[%emt 0:00:07]} 36. Bd7 {[%emt 0:00:10]} Nc4 {[%emt 0:01:54]} 37. Bxb5 {[%emt 0:02:27]} Nd6 {[%emt 0:00:01]} 38. Bc6 {[%emt 0:00:38]} Kg7 {[%emt 0:00:36]} 39. Kf2 {[%emt 0:00:08]} g5 {[%emt 0:02:21]} 40. Nc3 {[%emt 0:00:47]} Kg6 {[%emt 0:02:16]} 41. Be4+ {[%emt 0:01:12]} Kg7 {[%emt 0:00:21]} 42. Kf3 {[%emt 0:00:19]} h5 {[%emt 0:00:13]} 43. h3 {[%emt 0:00:54]} Kh6 {[%emt 0:01:12]} 44. Nd5 {[%emt 0:01:20]} g4+ {[%emt 0:00:19]} 45. hxg4 {[%emt 0:00:06]} hxg4+ {[%emt 0:00:01]} 46. Ke3 {[%emt 0:00:18]} Kg5 {[%emt 0:00:12]} 47. g3 {[%emt 0:00:37]} Nc4+ {[%emt 0:00:06]} 48. Kd3 {[%emt 0:01:11]} Nd6 {[%emt 0:00:01]} 49. Nb6 {[%emt 0:01:58]} Kf6 {[%emt 0:01:18]} 50. Nd5+ {[%emt 0:01:16]} Ke6 {[%emt 0:00:09]} 51. Ne3 {[%emt 0:00:33]} Ne8 {[%emt 0:01:15]} 52. Nxg4 {[%emt 0:00:30]} Nd6 {[%emt 0:00:09]} 53. Bh7 {[%emt 0:02:06]} Nb5 {[%emt 0:00:23]} 54. Ne3 {[%emt 0:00:56]} Nd6 {[%emt 0:00:10]} 55. Nc4 {[%emt 0:00:37]} Ne8 {[%emt 0:00:08]} 56. Ke3 {[%emt 0:00:41]} Nf6 {[%emt 0:00:03]} 57. Bc2 {[%emt 0:00:41]} Kd5 {[%emt 0:00:32]} 58. Nd2 {[%emt 0:01:08]} Ng4+ {[%emt 0:00:13]} 59. Kf3 {[%emt 0:00:59]} Nh2+ {[%emt 0:00:01]} 60. Kg2 {[%emt 0:00:42]} Ng4 {[%emt 0:00:02]} 61. Be4+ {[%emt 0:00:31]} Ke6 {[%emt 0:00:26]} 62. Kh3 {[%emt 0:01:28]} Nf6 {[%emt 0:00:15]} 63. Kh4 {[%emt 0:00:29]} Ne8 {[%emt 0:00:42]} 64. Kg5 {[%emt 0:01:29]} Nd6 {[%emt 0:00:11]} 65. Bc2 {[%emt 0:00:22]} Nf7+ {[%emt 0:00:01]} 66. Kg6 {[%emt 0:00:30]} Nd6 {[%emt 0:00:18]} 67. Ne4 {[%emt 0:00:24]} Ne8 {[%emt 0:00:16]} 68. Bb3+ {[%emt 0:01:02]} Ke7 {[%emt 0:00:31]} 69. g4 {[%emt 0:00:47]} Nc7 {[%emt 0:00:14]} 70. Kf5 {[%emt 0:00:37]} 1-0

[Event "46th OKU-B 2019"]
[Site "Utrecht"]
[Date "2019.06.01"]
[Round "2.5"]
[White "Boittin, Pascal"]
[Black "Bons, Maurits"]
[Result "1-0"]
[ECO "C18"]
[WhiteElo "1838"]
[BlackElo "1744"]
[Annotator "NA"]
[PlyCount "71"]
[EventDate "2019.05.31"]
[EventType "swiss"]
[EventCountry "NED"]
[SourceTitle "playchess.com"]
[Source "ChessBase"]
[SourceQuality "1"]
[TimeControl "6600+10"]

1. e4 {[%emt 0:00:00]} e6 {[%emt 0:00:00]} 2. d4 {[%emt 0:01:13]} d5 {[%emt 0:00:04]} 3. Nc3 {[%emt 0:01:25]} Bb4 {[%emt 0:00:22]} 4. e5 {[%emt 0:01:45]} c5 {[%emt 0:00:40]} 5. a3 {[%emt 0:01:41]} Bxc3+ {[%emt 0:00:32]} 6. bxc3 {[%emt 0:00:09]} Ne7 {[%emt 0:01:03]} 7. Qg4 {[%emt 0:05:52]} Nbc6 {[%emt 0:02:54]} 8. Qxg7 {[%emt 0:00:22]} Rg8 {[%emt 0:00:23]} 9. Qxh7 {[%emt 0:00:07]} cxd4 {[%emt 0:00:57]} 10. f4 $14 {[%emt 0:04:10]} dxc3 {[%emt 0:06:19]} 11. Ne2 {[%emt 0:06:24]} d4 {[%emt 0:01:11]} 12. Qd3 {[%emt 0:00:59]} Qb6 {[%emt 0:01:36]} 13. Ng3 {[%emt 0:07:28]} Nd5 {[%emt 0:14:22]} 14. Ne4 {[%emt 0:05:37]} Bd7 {[%emt 0:02:38]} 15. h4 {[%emt 0:06:48]} Ke7 {[%emt 0:02:03]} 16. h5 {[%emt 0:05:00]} Raf8 {[%emt 0:09:34]} 17. h6 {[%emt 0:02:43]} f6 {[%emt 0:06:39]} 18. h7 {[%emt 0:08:34]} Rh8 {[%emt 0:00:26]} 19. Qg3 {[%emt 0:01:29]} Be8 {[%emt 0:29:51]} 20. exf6+ {[%emt 0:20:17]} Kd7 {[%emt 0:03:49]} 21. f5 {[%emt 0:05:52]} Nd8 {[%emt 0:21:22]} 22. Qe5 {[%emt 0:06:35]} Bf7 {[%emt 0:03:00]} 23. a4 {[%emt 0:08:45]} exf5 {[%emt 0:00:28]} 24. Bb5+ {[%emt 0:01:50]} Nc6 {[%emt 0:02:08]} 25. Qd6+ {[%emt 0:06:17]} Kc8 {[%emt 0:00:01]} 26. Nc5 {[%emt 0:00:45]} Rd8 {[%emt 0:00:17]} 27. Nxb7 {[%emt 0:01:42]} Rxd6 {[%emt 0:00:28]} 28. Nxd6+ {[%emt 0:00:02]} Kc7 {[%emt 0:00:50]} 29. Nxf7 {[%emt 0:00:00]} Re8+ {[%emt 0:00:05]} 30. Kf1 {[%emt 0:00:00]} a6 {[%emt 0:00:34]} 31. Bd3 {[%emt 0:00:43]} Nxf6 {[%emt 0:00:05]} 32. Bf4+ {[%emt 0:00:05]} Kb7 {[%emt 0:00:18]} 33. Nd6+ {[%emt 0:00:04]} Ka7 {[%emt 0:00:09]} 34. Nxe8 {[%emt 0:00:06]} Nxh7 {[%emt 0:00:02]} 35. Rxh7+ {[%emt 0:00:07]} Ka8 {[%emt 0:00:02]} 36. Nc7+ {[%emt 0:00:07]} 1-0

[Event "46th OKU-B 2019"]
[Site "Utrecht"]
[Date "2019.06.01"]
[Round "2.6"]
[White "Van den Belt, Peter"]
[Black "Manschot, Thomas"]
[Result "1/2-1/2"]
[ECO "C17"]
[WhiteElo "1737"]
[BlackElo "1803"]
[Annotator "NA"]
[PlyCount "117"]
[EventDate "2019.05.31"]
[EventType "swiss"]
[EventCountry "NED"]
[SourceTitle "playchess.com"]
[Source "ChessBase"]
[SourceQuality "1"]
[TimeControl "6600+10"]

1. e4 {[%emt 0:00:00]} e6 {[%emt 0:00:00]} 2. d4 {[%emt 0:00:25]} d5 {[%emt 0:00:02]} 3. Nc3 {[%emt 0:00:17]} Bb4 {[%emt 0:00:08]} 4. e5 {[%emt 0:00:09]} c5 {[%emt 0:00:07]} 5. Bd2 {[%emt 0:00:29]} Nh6 {[%emt 0:05:52]} 6. Nb5 {[%emt 0:04:48]} Bxd2+ $1 {[%emt 0:00:38]} 7. Qxd2 {[%emt 0:00:07]} O-O $1 {[%emt 0:00:15]} 8. f4 {[%emt 0:06:32]} a6 {[%emt 0:04:30]} 9. Nd6 $15 {[%emt 0:00:54]} cxd4 {[%emt 0:03:15]} 10. Nf3 {[%emt 0:03:44]} f6 {[%emt 0:05:20]} 11. Nxc8 {[%emt 0:08:16]} Qxc8 {[%emt 0:02:23]} 12. Bd3 {[%emt 0:00:51]} Nc6 {[%emt 0:02:57]} 13. O-O {[%emt 0:03:40]} fxe5 {[%emt 0:03:43]} 14. fxe5 {[%emt 0:01:57]} Qc7 {[%emt 0:04:35]} 15. Qg5 {[%emt 0:08:54]} Nf7 {[%emt 0:04:07]} 16. Qh5 {[%emt 0:05:58]} Nh6 {[%emt 0:06:44]} 17. Bxh7+ {[%emt 0:06:05]} Kh8 {[%emt 0:03:16]} 18. Bd3 {[%emt 0:02:56]} Rxf3 {[%emt 0:18:33]} 19. Rxf3 {[%emt 0:04:25]} Nxe5 {[%emt 0:01:09]} 20. Rf2 {[%emt 0:07:58]} Kg8 {[%emt 0:25:12]} 21. h3 {[%emt 0:06:25]} Nxd3 {[%emt 0:06:45]} 22. cxd3 {[%emt 0:00:14]} Nf5 {[%emt 0:00:45]} 23. Rxf5 {[%emt 0:17:26]} exf5 {[%emt 0:00:28]} 24. Qxf5 {[%emt 0:03:51]} Qd6 {[%emt 0:01:55]} 25. Re1 {[%emt 0:01:56]} Rf8 {[%emt 0:02:40]} 26. Qg5 {[%emt 0:02:10]} Rc8 {[%emt 0:01:12]} 27. Qg4 {[%emt 0:02:09]} Qc5 {[%emt 0:03:10]} 28. Qe6+ {[%emt 0:01:12]} Kh7 {[%emt 0:01:34]} 29. Qf5+ {[%emt 0:02:37]} Kg8 {[%emt 0:00:13]} 30. Qe6+ {[%emt 0:00:51]} Kh7 {[%emt 0:00:05]} 31. Qf7 {[%emt 0:01:01]} b5 {[%emt 0:01:44]} 32. Re7 {[%emt 0:00:35]} Qc1+ {[%emt 0:00:11]} 33. Kh2 {[%emt 0:00:08]} Qh6 {[%emt 0:01:08]} 34. Qf5+ {[%emt 0:00:31]} Qg6 {[%emt 0:00:20]} 35. Qxd5 {[%emt 0:01:52]} Qf6 {[%emt 0:00:30]} 36. Re4 {[%emt 0:00:37]} Rd8 {[%emt 0:00:04]} 37. Qh5+ {[%emt 0:00:16]} Qh6 {[%emt 0:00:14]} 38. Qf5+ {[%emt 0:00:21]} Kg8 {[%emt 0:00:06]} 39. Re6 {[%emt 0:00:17]} Qh4 {[%emt 0:00:27]} 40. Re4 {[%emt 0:00:19]} Qf6 {[%emt 0:00:02]} 41. Qh5 {[%emt 0:01:05]} Qd6+ {[%emt 0:00:05]} 42. Kg1 {[%emt 0:00:11]} Qh6 {[%emt 0:00:13]} 43. Qe5 {[%emt 0:00:20]} Qd6 {[%emt 0:00:12]} 44. Qg5 {[%emt 0:00:18]} Qf6 {[%emt 0:00:03]} 45. Qc5 {[%emt 0:00:11]} Qd6 {[%emt 0:00:07]} 46. Re8+ {[%emt 0:00:33]} Kf7 {[%emt 0:00:11]} 47. Qh5+ {[%emt 0:00:06]} Kf6 {[%emt 0:00:06]} 48. Rxd8 {[%emt 0:00:04]} Qxd8 {[%emt 0:00:18]} 49. Qh4+ {[%emt 0:00:07]} g5 {[%emt 0:00:02]} 50. Qh6+ {[%emt 0:00:03]} Kf5 {[%emt 0:00:19]} 51. Qh7+ {[%emt 0:00:08]} Kf6 {[%emt 0:00:06]} 52. Qh6+ {[%emt 0:00:06]} Kf5 {[%emt 0:00:02]} 53. Qc6 {[%emt 0:00:14]} Qe7 {[%emt 0:00:28]} 54. Qf3+ {[%emt 0:00:21]} Kg6 {[%emt 0:00:08]} 55. Qc6+ {[%emt 0:00:08]} Kg7 {[%emt 0:00:10]} 56. Qd5 {[%emt 0:00:23]} Qe3+ {[%emt 0:00:06]} 57. Kh1 {[%emt 0:00:21]} Qc1+ {[%emt 0:00:08]} 58. Kh2 {[%emt 0:00:07]} Qf4+ {[%emt 0:00:01]} 59. Kg1 {[%emt 0:00:11]} 1/2-1/2